Cogmind - Beta 10.1 @@@ ROGUE MODE // 2021.04.06 @ 15:06:31 Player: DragoX Result: Self-destructed Performance ------------- Evolutions (0) 0 Regions Visited (4) 800 Robots Destroyed (26) 130 Value Destroyed (356) 356 Prototype IDs (23) 460 Alien Tech Used (0) 0 Bonus (300) 300 TOTAL SCORE: 2046 Bonus ------- Aligned with FarCom 300 Cogmind --------- Core Integrity 209/250 Matter 219/300 Energy 100/100 System Corruption 0% Temperature Cool (574) Movement Treading (220) Ox3 Location -9/Mines Parts ------- > --- POWER (1) -------- Light Nuclear Core > --- PROPULSION (2) --- Light Treads > --- UTILITY (2) ------ High-capacity Storage Unit High-capacity Storage Unit > --- WEAPON (2) ------- Guided Plasma Cannon > --- INVENTORY (20) --- Ion Engine Improved Targeting Computer Improved Targeting Computer Improved Targeting Computer Hardened Light Armor Plating Tractor Beam Beam Cannon Beam Cannon Assault Rifle EMP Blaster Grenade Launcher Mining Laser Heavy Hammer Peak State ------------ > --- POWER ------------ Light Nuclear Core > --- PROPULSION ------- Light Treads Light Treads > --- UTILITY ---------- High-capacity Storage Unit High-capacity Storage Unit > --- WEAPON ----------- Guided Plasma Cannon > --- INVENTORY -------- Improved Targeting Computer Improved Targeting Computer Improved Targeting Computer Hardened Light Armor Plating Beam Cannon Beam Cannon Assault Rifle [Rating: 16] Favorites ----------- Power Light Nuclear Core Engine Ion Engine Power Core Light Nuclear Core Propulsion Light Treads Treads Light Treads Leg Aluminum Leg Utility High-capacity Storage Unit Storage High-capacity Storage Unit Protection Hardened Light Armor Plating Weapon EM Pulse Gun Energy Gun EM Pulse Gun Energy Cannon Guided Plasma Cannon Ballistic Gun Assault Rifle Launcher Grenade Launcher Build | -11 -10 -10 -10 -9 ------- Run | Scr Mat Min Exi Min Slots Evolved . | . . . . . Power . | . . . . . Propulsion . | . . . . . Utility . | . . . . . Weapon . | . . . . . Parts Attached 11 | . 7 1 3 . Power 1 | . 1 . . . Engine . | . . . . . Core 1 | . 1 . . . Reactor . | . . . . . Propulsion 2 | . 2 . . . Treads 2 | . 2 . . . Leg . | . . . . . Wheel . | . . . . . Hover . | . . . . . Flight . | . . . . . Utility 3 | . 1 . 2 . Device . | . . . . . Storage 2 | . . . 2 . Processor . | . . . . . Hackware . | . . . . . Protection 1 | . 1 . . . Artifact . | . . . . . Weapon 5 | . 3 1 1 . Energy Gun 1 | . 1 . . . Energy Cannon 2 | . 1 . 1 . Ballistic Gun . | . . . . . Ballistic Cannon . | . . . . . Launcher 2 | . 1 1 . . Special Weapon . | . . . . . Impact Weapon . | . . . . . Slashing Weapon . | . . . . . Piercing Weapon . | . . . . . Special Melee Weapon . | . . . . . Unidentified Prototypes . | . . . . . Parts Lost 2 | . . 1 . 1 Power . | . . . . . Propulsion 1 | . . . . 1 Utility . | . . . . . Weapon 1 | . . 1 . . Highest Loss Streak 1 | . . 1 . 1 Average Slot Usage (%) 91 | . 98 99 85 85 Engine 1 | . 8 . . . Core 12 | . 5 14 14 14 Treads 27 | . 24 28 28 28 Storage 20 | . 14 14 24 28 Protection 7 | . 12 14 3 . Energy Gun 6 | . 14 13 . . Energy Cannon 10 | . 7 13 3 14 Launcher 3 | . 5 . 10 . Naked Turns . | . . . . . Heaviest Build 79 | 12 19 19 79 79 Greatest Support 40 | 20 40 40 40 40 Greatest Overweight (x) 1 | . . . 1 1 Average Overweight (x) . | . . . . 1 Largest Inventory Capacity 20 | . 6 6 20 20 Average Capacity 12 | . 6 6 16 20 Most Carried 13 | . 6 6 8 13 Average Carried 8 | . 5 6 6 12 Final Capacity 20 | 6 6 6 20 20 Final Carried 13 | 6 6 6 7 13 Class Distribution -------------------- 51% | Mutant 48% | Hauler-Mutant Dominant Class ---------------- Mutant | -10/Materials Mutant | -10/Mines Hauler-Mutant | -10/Exiles Hauler-Mutant | -9/Mines Resources | -11 -10 -10 -10 -9 ----------- Run | Scr Mat Min Exi Min Matter Collected 399 | 190 140 . . 69 Remotely . | . . . . . Salvage Created 460 | . 348 85 . 27 Parts 26 | . 21 4 . 1 Haulers Intercepted . | . . . . . Recyclers Shooed . | . . . . . Parts Field Recycled . | . . . . . Retrieved Matter . | . . . . . Parts Self-Destructed . | . . . . . Prevented . | . . . . . Kills | -11 -10 -10 -10 -9 ------- Run | Scr Mat Min Exi Min Combat Hostiles Destroyed 24 | . 8 14 . 2 Guns 5 | . 3 2 . . Cannons 6 | . 3 1 . 2 AOE 13 | . 2 11 . . Classes Destroyed 5 | . 3 2 . . Builder 1 | . 1 . . . Operator 1 | . 1 . . . Swarmer 5 | . . 3 . 2 Grunt 8 | . 8 . . . Assembled 11 | . . 11 . . Best Kill Streak 11 | . 6 11 . 2 Combat Bots Only 11 | . 5 11 . 2 Max Kills in Single Turn 3 | . 2 3 . 1 Gunslinging . | . . . . . Exploded 3 | . 1 3 . . Melee . | . . . . . Uniques/NPCs Destroyed . | . . . . . Combat | -11 -10 -10 -10 -9 -------- Run | Scr Mat Min Exi Min Damage Taken 563 | . 190 291 . 82 Core 41 | . 2 21 . 18 Absorbed by Shields . | . . . . . Core Remaining (%) 100 | 100 . . . . Volleys Fired 41 | . 18 16 . 7 Largest 2 | . 2 2 . 1 Hottest 120 | . 100 100 . 120 Shots Fired 54 | . 27 20 . 7 Gun 16 | . 12 4 . . Cannon 20 | . 9 4 . 7 Launcher 18 | . 6 12 . . Special . | . . . . . Kinetic . | . . . . . Thermal 20 | . 9 4 . 7 Explosive 18 | . 6 12 . . Electromagnetic 16 | . 12 4 . . Robot Hit Streak 8 | . 6 8 . 6 Robot Miss Streak 2 | . 2 1 . . Penetration Max . | . . . . . Secondary Targets . | . . . . . Shots Hit Robots 30 | . 15 13 . 2 Core Hits 39 | . 14 23 . 2 Critical Hits . | . . . . . Critical Kills . | . . . . . Critical Parts Destroyed . | . . . . . Melee Attacks . | . . . . . Impact . | . . . . . Slashing . | . . . . . Piercing . | . . . . . Sneak Attacks . | . . . . . Combat Hostiles . | . . . . . Follow-up Attacks . | . . . . . Damage Inflicted 1514 | . 471 787 . 256 Guns 196 | . 163 33 . . Cannons 360 | . 70 34 . 256 Explosions 958 | . 238 720 . . Melee . | . . . . . Ramming . | . . . . . Kinetic . | . . . . . Thermal 425 | . 135 34 . 256 Explosive 893 | . 173 720 . . Electromagnetic 196 | . 163 33 . . Impact . | . . . . . Slashing . | . . . . . Piercing . | . . . . . Highest Corruption . | . . . . . Average Corruption . | . . . . . Corruption Purged . | . . . . . Overload Shots . | . . . . . Overflow Damage 52 | . 9 28 . 15 Projectiles 15 | . . . . 15 Explosions 37 | . 9 28 . . Melee . | . . . . . Knockbacks . | . . . . . Impact . | . . . . . Kinetic . | . . . . . Secondary . | . . . . . Self-Inflicted Damage 105 | . 8 97 . . Shots 6 | . 1 5 . . Rammed . | . . . . . Targets Rammed . | . . . . . Kicked . | . . . . . Crushed . | . . . . . Highest Temperature 574 | . 186 240 . 574 Average Temperature 95 | . 73 74 . 313 Received Heat Transfer 90 | . 90 . . . Effects 3 | . . . . 3 Interference 1 | . . . . 1 Short Circuit 1 | . . . . 1 Damage (minor) 1 | . . . . 1 Siege Activations . | . . . . . Robots Corrupted . | . . . . . Combat Hostiles . | . . . . . Parts Fried . | . . . . . Impact Corruptions . | . . . . . Robots Melted . | . . . . . Combat Hostiles . | . . . . . Parts Melted 2 | . . . . 2 Heat Transferred 882 | . 248 74 . 560 Parts Sabotaged . | . . . . . Parts Stolen . | . . . . . Parts Stripped . | . . . . . Power Chain Reactions 1 | . 1 . . . Missiles Intercepted . | . . . . . Alert | -11 -10 -10 -10 -9 ------- Run | Scr Mat Min Exi Min Peak Influence 195 | . 195 70 . 50 Initial 17 | . . 17 . . Average 25 | . 47 38 . . Maximum Alert Level . | . . . . . Low Security (%) 100 | . 100 100 . 100 Level 1 . | . . . . . Level 2 . | . . . . . Level 3 . | . . . . . Level 4 . | . . . . . Level 5 . | . . . . . High Security . | . . . . . Max Security . | . . . . . Squads Dispatched 3 | . 3 . . . Investigation 1 | . 1 . . . Extermination . | . . . . . Reinforcement 2 | . 2 . . . Assault . | . . . . . Garrison . | . . . . . Intercept . | . . . . . Construction Impeded . | . . . . . Haulers Reinforced . | . . . . . Stealth | -11 -10 -10 -10 -9 --------- Run | Scr Mat Min Exi Min Distress Signals 1 | . 1 . . . Communications Jammed . | . . . . . Distress Signals . | . . . . . Times Spotted 26 | . 10 13 . 3 Peak Tracking Total 5 | . 3 5 . 3 Tactical Retreats . | . . . . . Traps | -11 -10 -10 -10 -9 ------- Run | Scr Mat Min Exi Min Traps Triggered 2 | . 2 . . . Indirectly . | . . . . . Trap Hack Attempts . | . . . . . Triggered . | . . . . . Disarmed . | . . . . . Reprogrammed . | . . . . . Reused . | . . . . . Traps Extracted . | . . . . . Installed . | . . . . . Triggered . | . . . . . Machines | -11 -10 -10 -10 -9 ---------- Run | Scr Mat Min Exi Min Machines Disabled . | . . . . . Max in Single Turn . | . . . . . Machines Sabotaged . | . . . . . Garrisons Compromised . | . . . . . Overloaded Fab Kills . | . . . . . Fab Network Shutdowns . | . . . . . Hacking | -11 -10 -10 -10 -9 --------- Run | Scr Mat Min Exi Min Machines Accessed 3 | . . . 3 . Terminals . | . . . . . Fabricators . | . . . . . Repair Stations . | . . . . . Recycling Units . | . . . . . Scanalyzers . | . . . . . Garrison Access . | . . . . . Total Hacks 11 | . . . 11 . Successful 11 | . . . 11 . Failed . | . . . . . Catastrophic . | . . . . . Database Lockouts . | . . . . . Manual 1 | . . . 1 . Terminals . | . . . . . Fabricators . | . . . . . Repair Stations . | . . . . . Recycling Units . | . . . . . Scanalyzers . | . . . . . Garrison Access . | . . . . . Terminal Hacks 11 | . . . 11 . Record 10 | . . . 10 . EX-Prototype ID Bank 1 | . . . 1 . Fabricator Hacks . | . . . . . Repair Station Hacks . | . . . . . Recycling Unit Hacks . | . . . . . Scanalyzer . | . . . . . Garrison Access Hacks . | . . . . . Unauthorized Hacks . | . . . . . Terminals . | . . . . . Fabricators . | . . . . . Repair Stations . | . . . . . Recycling Units . | . . . . . Scanalyzers . | . . . . . Garrison Access . | . . . . . Data Cores Recovered . | . . . . . Used . | . . . . . Hacking Detections . | . . . . . Full Trace Events . | . . . . . Feedback Events . | . . . . . Feedback Blocked . | . . . . . Robot Schematics Acquired . | . . . . . Robots Built . | . . . . . Matter . | . . . . . Time . | . . . . . Total Robot Build Rating . | . . . . . Part Schematics Acquired . | . . . . . Parts Built . | . . . . . Matter . | . . . . . Time . | . . . . . Total Part Build Rating . | . . . . . Parts Repaired . | . . . . . Time . | . . . . . Parts Recycled . | . . . . . Recycled Matter . | . . . . . Retrieved Matter . | . . . . . Retrieved Components . | . . . . . Parts Scanalyzed . | . . . . . Part Schematics Acquired . | . . . . . Parts Damaged . | . . . . . Bothacking | -11 -10 -10 -10 -9 ------------ Run | Scr Mat Min Exi Min Used RIF Installer . | . . . . . Robots Hacked . | . . . . . Non-combat . | . . . . . Combat . | . . . . . Robot Hacks Applied . | . . . . . Relay Couplers Released . | . . . . . Robots Rewired . | . . . . . Allies Hacked . | . . . . . Hacks Repelled . | . . . . . Allies | -11 -10 -10 -10 -9 -------- Run | Scr Mat Min Exi Min Total Allies 1 | . . . . 1 Largest Group 1 | . . . . 1 Highest-Rated Group 31 | . . . . 31 Highest-Rated Ally 31 | . . . . 31 Total Orders . | . . . . . Ally Attacks . | . . . . . Total Damage . | . . . . . Kills . | . . . . . Allies Corrupted . | . . . . . Allies Melted . | . . . . . Intel | -11 -10 -10 -10 -9 ------- Run | Scr Mat Min Exi Min Robot Analysis Total . | . . . . . Derelict Logs Recovered 4 | . . 3 . 1 Drone Launches . | . . . . . Drone Recoveries . | . . . . . Exploration | -11 -10 -10 -10 -9 ------------- Run | Scr Mat Min Exi Min Turns Passed 3045 | . 557 892 612 984 Spaces Moved 1610 | 1 247 530 347 485 Core . | . . . . . Treads 1559 | . 197 530 347 485 Legs 51 | 1 50 . . . Wheels . | . . . . . Hover . | . . . . . Flight . | . . . . . Fastest Speed 120 | 120 120 160 160 180 Average Speed 167 | 120 151 160 174 180 Slowest Speed 180 | 120 160 160 180 180 Overloaded Moves . | . . . . . Propulsion Burnouts . | . . . . . Robots Hopped . | . . . . . Cave-ins Triggered . | . . . . . Exploration Rate (%) 58 | 1 41 87 70 91 Regions Visited 4 Branch Regions 3 Pre-discovered Areas 2 | . . 1 1 . Known Exits Taken . | . . . . . Unknown Exits Taken 4 | 1 1 1 1 . Scrap Searched 3 | . . 1 . 2 Spaces Dug . | . . . . . Terrain Destroyed 129 | . 50 79 . . Melee . | . . . . . Projectile . | . . . . . AOE 129 | . 50 79 . . Terrain Rammed . | . . . . . Walls Destroyed . | . . . . . Machines Disabled . | . . . . . Actions | -11 -10 -10 -10 -9 --------- Run | Scr Mat Min Exi Min Total 1899 | . 402 554 354 589 Wait 217 | . 118 8 . 91 Move 1606 | . 246 529 346 485 Hop . | . . . . . Pick Up 14 | . 6 . 2 6 Fast Attach 3 | . 2 . 1 . Attach 2 | . 1 . 1 . Detach . | . . . . . Swap 6 | . 4 1 1 . Drop 10 | . 7 . 3 . Fire 41 | . 18 16 . 7 Melee . | . . . . . Ram . | . . . . . Kick . | . . . . . Crush . | . . . . . Escape Stasis . | . . . . . Rewire . | . . . . . Trap . | . . . . . Miscellaneous . | . . . . . Route ------- -11/Scrapyard -10/Materials (discovered 3 exits: [*Mat x2] / [*Min]) -10/Mines (discovered 3 exits: [*Mat x2] / *Exi) -10/Exiles -9/Mines (discovered 2 exits: [*Mat x2]) History --------- Turn | Location | Event 1 | -11/Scrapyard | Discovered new exit (range 0) 1 | -11/Scrapyard | Entered Materials 154 | -10/Materials | Discovered new exit (range 15) 315 | -10/Materials | Build established: Mutant 417 | -10/Materials | Discovered new exit (range 12) 530 | -10/Materials | Discovered new exit (range 12) 558 | -10/Materials | Entered Mines 770 | -10/Mines | Deemed a non-threat by the Exiles lab entrance 770 | -10/Mines | Discovered new exit (range 5) 800 | -10/Mines | Learned Materials terminal intel 869 | -10/Mines | Learned location of 1 exit from Materials 957 | -10/Mines | Discovered new exit (range 5) 1198 | -10/Mines | Discovered new exit (range 12) 1375 | -10/Mines | Assembled infested the area 1450 | -10/Mines | Entered Exiles 1461 | -10/Exiles | Destroyed 11 combat bots 1489 | -10/Exiles | Met 8R-AWN 1514 | -10/Exiles | Met EX-HEX 1633 | -10/Exiles | Met EX-DEC 1744 | -10/Exiles | Learned location of Zion (-7) 1780 | -10/Exiles | Met EX-BIN 1827 | -10/Exiles | Aligned with FarCom system 1829 | -10/Exiles | Given EX-Vault access code 1877 | -10/Exiles | Opened EX-Vault 1885 | -10/Exiles | Build established: Hauler-Mutant 1891 | -10/Exiles | Found Gui. Plasma Cannon 1929 | -10/Exiles | Warned to stay clear of 0b10 Research branches 2042 | -10/Exiles | Discovered new exit (range 14) 2062 | -10/Exiles | Left Exiles lab with Gui. Plasma Cannon 2062 | -10/Exiles | Entered Mines 2358 | -9/Mines | Discovered new exit (range 6) 2372 | -9/Mines | Received a Mining Laser from a helpful Derelict 2599 | -9/Mines | Discovered new exit (range 5) 3046 | -9/Mines | Self-destructed Last Messages --------------- 02375_ AV-2K0(g): "You're apparently new around these parts, I'll cover you." 02377_ AV-2K0(g): "Mining lasers are a lot more useful than you might think..." 02377_ Acquired Mining Laser. 02599_ EXIT=FOUND 02636_ AV-2K0(g): "You look like you can take it from here!" 02636_ AV-2K0(g) slips back into the shadows. 03036_ Destroyed Flight Unit. 03038_ Flight Unit melted. 03038_ Lgt. Assault Rifle melted. 03038_ S-10 Pest destroyed. 03041_ R-06 Scavenger collects Lgt. Assault Rifle. 03042_ Destroyed Lgt. Ion Engine. 03043_ Lgt. Treads destroyed. 03044_ Lgt. Nuclear Core permanently disabled. 03044_ Overheating: Short circuit. 03045_ Overheating: Hcp. Storage Unit damaged (-240). 03046_ Overheating: System interference. 03046_ Gui. Plasma Cannon temporarily disabled. Map ----- +----------------------------------------------------+ | ????###### ##???????# #???????????????## ## | | ???## ###????????# #????????????????### ##? | | ??## ###??????????# #??????????????????# #?? | | ??# ##????????????# ######?????????????# #?? | | ??# #####?????????????# #?????????????# #?? | | ??# ##?????????????????# #???????###???# #?? | | ??##???????????????????##### #??????# #???# ### | | ???????????????????????????# #?????? #???# # | | ???????????????????????????# #????## #???# # | | ????????????####???????????# #???## #????### # | | ??????????## ##??????????# #??## #??????# # | | ?????????## ##?????????# #### #??????# # | | ?????##### #?????????# #??????# # | | ????## #?????????# ##??????# # | | ????# #??????????######## ##??????## | | ???## ##?????????????????# #???????# | | ??## ###????????####??????# #???##### | | ??# ## #?????????## ####???# #???# | | ??# ### #?????????# ##??# #???# ## | | ?# #?# #?????????# ##?# #???# ## | | ?# #?# #??????????# #?# ##??# ### | | ?## #?# #???????????# #?# ##?# #?##### | | ??## ##?# #???????????# ### #?# #?????# | | ???####???# #?????####### %% ### ##????# | | ??????????# #?????# r s t #????# | | ??????????# #?????# @ r #????# | | ??????????# #?????# ##### ## #### ###### | | ??????????# ##????# #???# ### ###??# # | | ?????????## ###??# #???# #?########????# # | | ????###### #### #???# #?????????????####### # | | ???## ## ##??# #???????????????????# # | | ???# #??# #???????????????????# # | | ???# """ ### #??# #???????????????????# # | | ??## """ ##?#### ##??# #???????????????##### # | | ??# """ ##?????####???? ????????????????# # | | ?# #?????????????? ????????????????# ### # | | # ##?????????????? ????????????????# #?# # | | #???????????????"????????????????# #?# | | #???????????????"?????????????#### #?# | | # #???????????????????????????### ##### | | ##### #??????????????C????????????# #??? | | ????## ##??????????????????????????# #?? | | ?????#####??????????????????????????# #? | | ????????????????????????????????????# #? | | ????????????????????????????????????# ##? | | ????????????????????????????????????# ##?? | | ????????????????????????????????????## ### ##??? | | ?????????????????????????????????????###??###????? | | ?????????????????????????????????????????????????? | | ?????????????????????????????????????????????????? | +----------------------------------------------------+ Best States ------------- Heat Dissipation 25 Energy Generation 14 Energy Capacity 250 Matter Stores 300 Matter Capacity 300 Sight Range 16 Terrain Scan Density 10 Armor Coverage 150 Evasion (%) 40 Recoil Reduction 2 Item Schematics ----------------- None Robot Schematics ------------------ None Fabricated ------------ Nothing Alien Tech Used ----------------- None Achievements -------------- None Challenges ------------ None Game ------ Seed RecoilSubatomicFacilitator Manual? 0 Play Time 00:16:47 Cumulative 13.9 hours Start 2021.04.06 @ 14:43:59 End 2021.04.06 @ 15:06:31 Sessions 1 Manual Loads 0 Difficulty Rogue Special Mode None Game No. 24 Rogue 24 Adventurer 0 Explorer 0 Win Type - Total 0 Types 0/0/0/0/0/0/0/0/0 Lore% 10 Gallery% 15 Achievement% 17 Wizard Run 0 Options --------- ASCII 0 Keyboard 0 Movement Numpad Keybinds 0 Fullscreen 2 Font 18/X11 Map View 76x50 Tactical HUD 1 Map Filters NONE Filters NONE Steam 0 RUN: 412977c5-f8ca-4d4c-9a7a-9a1b5ecc1680